Cogmind - Beta 9.2 @@@ ROGUE MODE // 2019.12.12 @ 11:12:40 Player: spruce (@macklemurr) Result: Destroyed by D-53 Grenadier with Mini Grenade Launcher Performance ------------- Evolutions (0) 0 Regions Visited (2) 400 Robots Destroyed (6) 30 Value Destroyed (116) 116 Prototype IDs (0) 0 Alien Tech Used (0) 0 Bonus (0) 0 TOTAL SCORE: 546 Bonus ------- None Cogmind --------- Core Integrity 0/250 Matter 300/300 Energy 100/100 System Corruption 2% Temperature Cool (0) Movement Core (150) Ox2 Location -10/Mines Parts ------- > --- POWER (1) -------- (None) > --- PROPULSION (2) --- (None) > --- UTILITY (2) ------ Medium Storage Unit > --- WEAPON (2) ------- (None) > --- INVENTORY (8) ---- Light Nuclear Core Wheel Weight Redist. System Weight Redist. System Improved Targeting Computer Grenade Launcher Peak State ------------ > --- POWER ------------ Light Ion Engine > --- PROPULSION ------- Aluminum Leg Aluminum Leg > --- UTILITY ---------- Small Storage Unit Improved Targeting Computer > --- WEAPON ----------- EM Pulse Gun Small Laser > --- INVENTORY -------- Light Nuclear Core Wheel Weight Redist. System Weight Redist. System Improved Targeting Computer Grenade Launcher [Rating: 9] Favorites ----------- Power Light Ion Engine Engine Light Ion Engine Propulsion Aluminum Leg Leg Aluminum Leg Utility Improved Targeting Computer Storage Small Storage Unit Processor Improved Targeting Computer Weapon EM Pulse Gun Energy Gun EM Pulse Gun Build | -11 -10 -10 ------- Run | Scr Mat Min Slots Evolved . | . . . Power . | . . . Propulsion . | . . . Utility . | . . . Weapon . | . . . Parts Attached 8 | 6 2 . Power 1 | 1 . . Engine 1 | 1 . . Core . | . . . Reactor . | . . . Propulsion 2 | 2 . . Treads . | . . . Leg 2 | 2 . . Wheel . | . . . Hover . | . . . Flight . | . . . Utility 3 | 1 2 . Device . | . . . Storage 2 | 1 1 . Processor 1 | . 1 . Hackware . | . . . Protection . | . . . Artifact . | . . . Weapon 2 | 2 . . Energy Gun 2 | 2 . . Energy Cannon . | . . . Ballistic Gun . | . . . Ballistic Cannon . | . . . Launcher . | . . . Special Weapon . | . . . Impact Weapon . | . . . Slashing Weapon . | . . . Piercing Weapon . | . . . Special Melee Weapon . | . . . Unidentified Prototypes . | . . . Parts Lost 6 | . . 6 Power 1 | . . 1 Propulsion 2 | . . 2 Utility 1 | . . 1 Weapon 2 | . . 2 Highest Loss Streak 6 | . . 6 Average Slot Usage (%) 96 | . 99 83 Engine 13 | . 14 12 Leg 27 | . 28 22 Storage 14 | . 14 14 Processor 13 | . 13 12 Energy Gun 26 | . 28 21 Naked Turns . | . . . Heaviest Build 14 | 10 14 14 Greatest Support 20 | 20 20 20 Greatest Overweight (x) 2 | 1 . 2 Average Overweight (x) . | . . . Largest Inventory Capacity 8 | 6 8 8 Average Capacity 6 | 5 6 8 Most Carried 6 | 4 6 6 Average Carried 5 | 2 5 6 Final Capacity 8 | 6 8 8 Final Carried 6 | 4 6 6 Class Distribution -------------------- 100% | Mutant Dominant Class ---------------- Mutant | -10/Materials Mutant | -10/Mines Resources | -11 -10 -10 ----------- Run | Scr Mat Min Matter Collected 270 | 196 74 . Remotely . | . . . Salvage Created 130 | . 130 . Parts 13 | . 13 . Haulers Intercepted . | . . . Recyclers Shooed 1 | . 1 . Parts Field Recycled . | . . . Retrieved Matter . | . . . Parts Self-Destructed . | . . . Prevented . | . . . Kills | -11 -10 -10 ------- Run | Scr Mat Min Combat Hostiles Destroyed 5 | . 5 . Guns 4 | . 4 . AOE 1 | . 1 . Classes Destroyed 3 | . 3 . Builder 1 | . 1 . Swarmer 3 | . 3 . Grunt 2 | . 2 . Best Kill Streak 3 | . 3 . Combat Bots Only 3 | . 3 . Max Kills in Single Turn 2 | . 2 . Gunslinging . | . . . Exploded 1 | . 1 . Melee . | . . . Uniques/NPCs Destroyed . | . . . Combat | -11 -10 -10 -------- Run | Scr Mat Min Damage Taken 742 | . 321 421 Core 261 | . 100 161 Absorbed by Shields . | . . . Core Remaining (%) 100 | 100 . . Volleys Fired 25 | . 20 5 Largest 2 | . 2 2 Hottest 80 | . 80 80 Shots Fired 46 | . 40 6 Gun 46 | . 40 6 Cannon . | . . . Launcher . | . . . Special . | . . . Kinetic . | . . . Thermal 21 | . 20 1 Explosive . | . . . Electromagnetic 25 | . 20 5 Robot Hit Streak 7 | . 7 6 Robot Miss Streak 5 | . 5 1 Penetration Max . | . . . Secondary Targets 2 | . 2 . Max Gunslinging Chain 1 | . 1 . Shots Hit Robots 26 | . 21 5 Core Hits 11 | . 9 2 Critical Hits . | . . . Critical Kills . | . . . Critical Parts Destroyed . | . . . Melee Attacks . | . . . Impact . | . . . Slashing . | . . . Piercing . | . . . Sneak Attacks . | . . . Combat Hostiles . | . . . Follow-up Attacks . | . . . Damage Inflicted 383 | . 326 57 Guns 261 | . 204 57 Cannons . | . . . Explosions 122 | . 122 . Melee . | . . . Ramming . | . . . Kinetic . | . . . Thermal 189 | . 177 12 Explosive . | . . . Electromagnetic 194 | . 149 45 Impact . | . . . Slashing . | . . . Piercing . | . . . Highest Corruption 2 | . . 2 Average Corruption 2 | . . 2 Corruption Purged . | . . . Overload Shots . | . . . Overflow Damage 6 | . 6 . Projectiles . | . . . Explosions 6 | . 6 . Melee . | . . . Knockbacks . | . . . Impact . | . . . Kinetic . | . . . Secondary . | . . . Self-Inflicted Damage 39 | . 39 . Shots 1 | . 1 . Rammed . | . . . Targets Rammed . | . . . Kicked . | . . . Crushed . | . . . Highest Temperature 264 | . 264 18 Average Temperature 107 | . 110 12 Received Heat Transfer 111 | . 99 12 Siege Activations . | . . . Robots Corrupted . | . . . Combat Hostiles . | . . . Parts Fried . | . . . Impact Corruptions . | . . . Robots Melted . | . . . Combat Hostiles . | . . . Parts Melted . | . . . Heat Transferred 350 | . 325 25 Parts Sabotaged . | . . . Parts Stolen . | . . . Parts Stripped . | . . . Power Chain Reactions 2 | . 2 . Missiles Intercepted . | . . . Alert | -11 -10 -10 ------- Run | Scr Mat Min Peak Influence 140 | . 140 54 Average Influence 66 | . 87 43 Maximum Alert Level . | . . . Low Security (%) 100 | 100 100 100 Level 1 . | . . . Level 2 . | . . . Level 3 . | . . . Level 4 . | . . . Level 5 . | . . . High Security . | . . . Max Security . | . . . Squads Dispatched 1 | . 1 . Investigation 1 | . 1 . Extermination . | . . . Reinforcement . | . . . Assault . | . . . Garrison . | . . . Intercept . | . . . Construction Impeded . | . . . Haulers Reinforced . | . . . Stealth | -11 -10 -10 --------- Run | Scr Mat Min Distress Signals . | . . . Communications Jammed . | . . . Distress Signals . | . . . Times Spotted 9 | . 7 2 Peak Tracking Total 3 | . 3 2 Tactical Retreats . | . . . Traps | -11 -10 -10 ------- Run | Scr Mat Min Traps Triggered . | . . . Indirectly . | . . . Trap Hack Attempts . | . . . Triggered . | . . . Disarmed . | . . . Reprogrammed . | . . . Reused . | . . . Traps Extracted . | . . . Installed . | . . . Triggered . | . . . Machines | -11 -10 -10 ---------- Run | Scr Mat Min Machines Disabled . | . . . Max in Single Turn . | . . . Machines Sabotaged . | . . . Garrisons Compromised . | . . . Overloaded Fab Kills . | . . . Fab Network Shutdowns . | . . . Hacking | -11 -10 -10 --------- Run | Scr Mat Min Machines Accessed 2 | . 2 . Terminals 2 | . 2 . Fabricators . | . . . Repair Stations . | . . . Recycling Units . | . . . Scanalyzers . | . . . Garrison Access . | . . . Total Hacks 2 | . 2 . Successful . | . . . Failed 2 | . 2 . Catastrophic . | . . . Database Lockouts . | . . . Manual 1 | . 1 . Terminals 2 | . 2 . Fabricators . | . . . Repair Stations . | . . . Recycling Units . | . . . Scanalyzers . | . . . Garrison Access . | . . . Terminal Hacks . | . . . Fabricator Hacks . | . . . Repair Station Hacks . | . . . Recycling Unit Hacks . | . . . Scanalyzer . | . . . Garrison Access Hacks . | . . . Unauthorized Hacks . | . . . Terminals . | . . . Fabricators . | . . . Repair Stations . | . . . Recycling Units . | . . . Scanalyzers . | . . . Garrison Access . | . . . Data Cores Recovered . | . . . Used . | . . . Hacking Detections 1 | . 1 . Full Trace Events . | . . . Feedback Events . | . . . Feedback Blocked . | . . . Robot Schematics Acquired . | . . . Robots Built . | . . . Matter . | . . . Time . | . . . Total Robot Build Rating . | . . . Part Schematics Acquired . | . . . Parts Built . | . . . Matter . | . . . Time . | . . . Total Part Build Rating . | . . . Parts Repaired . | . . . Time . | . . . Parts Recycled . | . . . Recycled Matter . | . . . Retrieved Matter . | . . . Retrieved Components . | . . . Parts Scanalyzed . | . . . Part Schematics Acquired . | . . . Parts Damaged . | . . . Bothacking | -11 -10 -10 ------------ Run | Scr Mat Min Used RIF Installer . | . . . Robots Hacked . | . . . Non-combat . | . . . Combat . | . . . Robot Hacks Applied . | . . . Relay Couplers Released . | . . . Robots Rewired . | . . . Allies Hacked . | . . . Hacks Repelled . | . . . Allies | -11 -10 -10 -------- Run | Scr Mat Min Total Allies . | . . . Largest Group . | . . . Highest-Rated Group . | . . . Highest-Rated Ally . | . . . Total Orders . | . . . Ally Attacks . | . . . Total Damage . | . . . Kills . | . . . Allies Corrupted . | . . . Allies Melted . | . . . Intel | -11 -10 -10 ------- Run | Scr Mat Min Robot Analysis Total . | . . . Derelict Logs Recovered . | . . . Drone Launches . | . . . Drone Recoveries . | . . . Exploration | -11 -10 -10 ------------- Run | Scr Mat Min Turns Passed 522 | 92 356 74 Spaces Moved 334 | 75 213 46 Core 25 | 22 . 3 Treads . | . . . Legs 309 | 53 213 43 Wheels . | . . . Hover . | . . . Flight . | . . . Fastest Speed 50 | 50 120 120 Average Speed 116 | 102 120 124 Slowest Speed 150 | 120 120 150 Overloaded Moves . | . . . Propulsion Burnouts . | . . . Robots Hopped . | . . . Cave-ins Triggered 1 | . . 1 Exploration Rate (%) 14 | 5 31 8 Regions Visited 2 Branch Regions 1 Pre-discovered Areas . | . . . Known Exits Taken . | . . . Unknown Exits Taken 2 | 1 1 . Scrap Searched . | . . . Spaces Dug . | . . . Terrain Destroyed 4 | . 4 . Melee . | . . . Projectile . | . . . AOE 4 | . 4 . Actions | -11 -10 -10 --------- Run | Scr Mat Min Total 422 | 90 275 57 Wait 38 | . 32 6 Move 332 | 74 212 46 Hop . | . . . Pick Up 15 | 10 5 . Fast Attach 1 | . 1 . Attach 6 | 6 . . Detach . | . . . Swap 1 | . 1 . Drop 4 | . 4 . Fire 25 | . 20 5 Melee . | . . . Ram . | . . . Kick . | . . . Crush . | . . . Escape Stasis . | . . . Rewire . | . . . Trap . | . . . Miscellaneous . | . . . Route ------- -11/Scrapyard -10/Materials -10/Mines History --------- Turn | Location | Event 10 | -11/Scrapyard | Discovered new exit (range 15) 93 | -11/Scrapyard | Entered Materials 323 | -10/Materials | Build established: Mutant 421 | -10/Materials | Discovered new exit (range 12) 449 | -10/Materials | Entered Mines 468 | -10/Mines | Assembled infested the area 501 | -10/Mines | Core integrity fell below 50% 510 | -10/Mines | Crushed by falling debris 522 | -10/Mines | Core integrity fell below 20% 523 | -10/Mines | Destroyed by D-53 Grenadier with Mini Grenade Launcher Last Messages --------------- K-01 Serf collects debris. C-30 ARC bursts open, deploying its payload. D-53 Grenadier unfolds itself. D-53 Grenadier misfires. Aluminum Leg destroyed. K-01 Serf destroyed. Destroyed Shock Absorption System. EM Pulse Gun destroyed. Sml. Laser destroyed. D-53 Grenadier destroyed. The unstable cave ceiling collapses. Crushed by falling debris. Imp. Targeting Computer destroyed. System corrupted by crushing effect (+2). 26 Matter crushed. The unstable cave ceiling collapses. R-06 Scavenger destroyed. Plasma Injector explodes. Lgt. Ion Engine destroyed. Aluminum Leg destroyed. Map ----- +----------------------------------------------------+ | ?????????????????????????????? | | ?????????????????????????????? | | ?????????????????????????????? | | ?????????????????????????????? | | ?????????????????????????????? | | ????####?????????????????????? | | ???## ##????????????????????? | | ??## #????????????????????? | | ??# #????????????????????? | | ??# ##????????????????????? | | ??# ###???????????????????? | | ??# #???????????????????? | | ??## #???????????????????? | | ???# #???????????????????? | | ???## ##???????????????????? | | ????## #????????????????????? | | ????## ##????????????????????? | | ?????# #?????????????????????? | | ????## ########??????????????? | | ??### #??????????? | | ?## #####??????????????? | | ?# #?????????????????? | | ?# #?????????????????? | | ?## #?????????????????? | | ?# d #?????????????????? | | ?# @ #?????????????????? | | ?#; #????????????????? | | ?#; ##????????????????? | | ?#; #?????????????????? | | ?#; ???????????????? | | ?#; ## #??????????????? | | ?#; #??#??????????????? | | ?## #?????????????????? | | ??##### ####?????????????????? | | ??????? #????????????????????? | | ??????? #????????????????????? | | ??????? #????????????????????? | | ??????? ????????????????????? | | ??????? ????????????????????? | | ??????? ????????????????????? | | ??????? ????????????????????? | | ?????????????????????????????? | | ?????????????????????????????? | | ?????????????????????????????? | | ?????????????????????????????? | | ?????????????????????????????? | | ?????????????????????????????? | | ?????????????????????????????? | | ?????????????????????????????? | | ?????????????????????????????? | +----------------------------------------------------+ Best States ------------- Heat Dissipation 25 Energy Generation 10 Energy Capacity 125 Matter Stores 300 Matter Capacity 300 Sight Range 16 Terrain Scan Density 10 Evasion (%) 50 Targeting Accuracy 6 Item Schematics ----------------- None Robot Schematics ------------------ None Fabricated ------------ Nothing Alien Tech Used ----------------- None Achievements -------------- None Challenges ------------ None Game ------ Seed ThermalArmorDisintegrator Manual? 0 Play Time 00:05:33 Cumulative 60.9 hours Start 2019.12.12 @ 11:05:44 End 2019.12.12 @ 11:12:40 Sessions 1 Manual Loads 0 Difficulty Rogue Special Mode None Game No. 175 Rogue 175 Adventurer 0 Explorer 0 Win Type - Total 1 Types 1/0/0/0/0/0/0 Lore% 65 Gallery% 62 Achievement% 51 Wizard Run 0 Options --------- ASCII 0 Keyboard 0 Movement Numpad Keybinds 0 Fullscreen 1 Font 24/Smallcaps Map View 76x50 Tactical HUD 0 Map Filters NONE Filters NONE Steam 1 RUN: 07ff0374-18ad-4a6d-bc42-e7f767f5ea4d